bitfinex/quotes_ETHUSD_20250726
["timestamp","ask_amount","ask_price","bid_price","bid_amount"]
[1753497108007,0.4964,3751.2,3750.4,2.66637509]
[1753497108397,0.4964,3751.2,3750.4,2.86988702]
[1753497108723,0.4964,3751.2,3750.5,2.66629476]
[1753497108918,0.4964,3751.2,3750.4,2.86987583]
[1753497109222,0.4964,3751.2,3750.5,2.66629911]
[1753497109822,0.4964,3751.2,3750.7,3.0]
[1753497109984,0.4964,3751.2,3750.7,2.66616566]
[1753497110284,0.4964,3751.2,3751.0,0.1336]
[1753497110718,0.8887,3751.5,3751.0,0.1336]
[1753497110905,0.7551,3751.5,3751.0,2.79952512]
[1753497111222,1.2381,3751.5,3751.2,0.1336]
[1753497111797,0.483,3751.4,3751.2,0.1336]
[1753497112220,0.7551,3751.5,3751.2,0.1336]
[1753497114293,0.483,3751.7,3751.2,0.14623494]
[1753497114486,0.7545,3751.8,3751.2,0.14623494]
[1753497114686,0.7545,3751.8,3751.6,0.1336]
[1753497115022,0.1336,3752.1,3751.7,0.8131]
[1753497115188,1.0381,3752.4,3751.7,4.2]
[1753497115384,0.483,3752.1,3751.9,2.79890199]
[1753497115926,0.483,3752.1,3751.9,0.1336]
[1753497116094,1.3875,3752.4,3752.0,2.6652452]
[1753497116292,0.483,3752.3,3751.9,0.1336]
[1753497116601,0.15,3752.4,3751.8,4.2]
[1753497116910,0.483,3752.3,3752.1,0.1336]
[1753497117310,0.9045,3752.4,3752.2,2.66509993]
[1753497117508,0.15,3752.4,3752.3,2.66503211]
[1753497117748,0.15,3752.4,3752.3,0.1336]
[1753497118046,0.15,3752.4,3752.3,2.79863211]
[1753497118253,0.15,3752.4,3752.1,2.66516874]
[1753497118398,0.15,3752.4,3752.1,0.5964]
[1753497118603,0.15,3752.4,3752.2,2.66509131]
[1753497119224,0.15,3752.4,3752.3,0.1336]
[1753497119398,0.15,3752.4,3752.3,2.79863211]
[1753497119596,0.15,3752.4,3752.3,3.26143211]
[1753497119814,0.15,3752.4,3752.3,3.71783211]
[1753497120352,0.15,3752.4,3752.3,0.1336]
[1753497120817,0.15,3752.4,3752.3,0.32912335]
[1753497121815,0.15,3752.4,3752.3,0.79192335]
[1753497122426,0.15,3752.4,3752.3,0.32912335]
[1753497122632,0.15,3752.4,3752.3,0.19552335]
[1753497122830,0.15,3752.4,3752.2,4.3336]
[1753497123033,0.15,3752.4,3752.3,1.6892]
[1753497123231,0.15,3752.4,3752.2,4.3336]
[1753497124450,0.15,3752.4,3751.9,2.66531437]
[1753497124451,0.15,3752.4,3751.9,4.2]
[1753497124631,0.483,3752.3,3751.9,4.3336]
[1753497125238,2.81497787,3752.4,3751.9,4.7964]
[1753497125239,0.15,3752.4,3751.9,4.7964]
[1753497125447,0.15,3752.4,3752.3,0.1336]
[1753497125656,0.15,3752.4,3752.3,3.71783211]
[1753497125847,0.15,3752.4,3752.3,1.0528]
[1753497126555,0.15,3752.4,3752.3,0.1336]
[1753497127355,2.81498278,3752.4,3751.9,4.2]
[1753497127520,0.15,3752.4,3751.9,7.3280937]
[1753497127725,0.15,3752.4,3752.1,0.1336]
[1753497127957,0.15,3752.4,3752.2,0.7916]
[1753497128142,0.15,3752.4,3752.3,3.58423211]
[1753497128344,0.15,3752.4,3752.3,5.1192]
[1753497128538,0.15,3752.4,3752.3,7.78423211]
[1753497129260,0.15,3752.4,3752.3,6.86503211]
[1753497130036,0.15,3752.4,3752.3,7.32783211]
[1753497130856,0.15,3752.4,3752.3,6.86503211]
[1753497132267,0.15,3752.4,3752.3,7.32783211]
[1753497132446,0.15,3752.4,3752.3,7.78423211]
[1753497132647,0.15,3752.4,3752.3,6.86503211]
[1753497133268,0.15,3752.4,3752.3,7.78423211]
[1753497134357,0.15,3752.4,3752.3,3.58423211]
[1753497136959,0.15,3752.4,3752.3,2.66503211]
[1753497137258,0.15,3752.4,3752.2,2.66507941]
[1753497137438,0.15,3752.4,3752.2,2.66510313]
[1753497137636,0.15,3752.4,3752.1,3.30077087]
[1753497137837,0.15,3752.4,3752.1,3.19497087]
[1753497138037,0.15,3752.4,3752.3,0.1336]
[1753497139865,0.15,3752.4,3752.3,2.79863211]
[1753497140035,0.15,3752.4,3752.3,3.26143211]
[1753497140464,0.15,3752.4,3752.3,0.5964]
[1753497140663,0.15,3752.4,3752.3,0.1336]
[1753497141056,0.15,3752.4,3752.3,4.3336]
[1753497141360,0.15,3752.4,3752.3,6.99863211]
[1753497141668,0.15,3752.4,3752.3,7.91053211]
[1753497142281,0.15,3752.4,3752.3,3.25573211]
[1753497143159,0.15,3752.4,3752.3,2.79863211]
[1753497145145,0.15,3752.4,3752.3,3.25573211]
[1753497145369,0.15,3752.4,3752.3,3.71053211]
[1753497146876,0.15,3752.4,3752.3,3.25573211]
[1753497147170,0.15,3752.4,3752.3,2.79863211]
[1753497147385,0.15,3752.4,3752.3,5.43663211]
[1753497149059,0.15,3752.4,3752.3,10.54853211]
[1753497149385,0.15,3752.4,3752.3,9.63563211]
[1753497149890,0.15,3752.4,3752.3,10.54753211]
[1753497152765,0.15,3752.4,3752.3,9.63563211]
[1753497153194,0.15,3752.4,3752.3,9.63363211]
[1753497153570,0.15,3752.4,3752.3,10.54553211]
[1753497154603,0.15,3752.4,3752.3,9.63363211]
[1753497154975,0.15,3752.4,3752.3,10.54553211]
[1753497158805,0.15,3752.4,3752.3,10.09073211]
[1753497159316,0.15,3752.4,3752.3,10.54553211]
[1753497164689,0.15,3752.4,3752.3,5.42863211]
[1753497166724,0.15,3752.4,3752.3,2.79863211]
[1753497166891,0.15,3752.4,3752.3,5.88573211]
[1753497167093,0.15,3752.4,3752.3,6.34053211]
[1753497169121,0.15,3752.4,3752.3,3.25573211]
[1753497169290,0.15,3752.4,3752.3,5.42663211]
[1753497169687,0.15,3752.4,3752.3,6.23673211]
[1753497169922,0.004,3753.1,3753.0,5.66453503]
[1753497170125,2.81,3756.1,3753.0,5.66453503]
[1753497170126,0.1328,3754.8,3753.6,3.8101]
[1753497170326,0.1328,3755.1,3754.8,3.8101]
[1753497170618,0.1328,3755.1,3754.1,3.0]
[1753497170619,0.8943,3755.0,3754.1,0.8101]
[1753497170844,0.8943,3754.9,3754.2,2.628]
[1753497171043,0.4667,3755.2,3754.3,0.49577847]
[1753497171250,0.18317979,3756.1,3754.4,0.8101]
[1753497171454,0.8943,3756.2,3755.1,4.21745612]
[1753497171664,0.4276,3756.2,3755.2,3.4371]
[1753497171958,0.4276,3756.2,3755.1,0.4832]
[1753497171959,0.18317005,3757.2,3754.8,3.0]
[1753497171960,0.7649,3757.6,3756.1,4.21745612]
[1753497172123,2.66166428,3757.1,3756.2,2.627]
[1753497172322,2.66166428,3757.1,3756.3,3.0]
[1753497172323,0.4667,3757.1,3756.3,3.0]
[1753497172634,0.03327122,3757.0,3756.4,2.627]
[1753497172835,0.7649,3756.7,3756.1,0.19499655]
[1753497173038,0.7649,3756.5,3755.5,2.627]
[1753497173238,0.4667,3757.5,3755.5,2.627]
[1753497173239,1.2316,3757.5,3755.7,0.55]
[1753497173566,3.12816753,3757.4,3756.3,2.66217122]
[1753497173901,2.66222026,3757.7,3756.9,3.0]
[1753497173902,0.00096,3757.7,3756.9,3.0]
[1753497174063,0.00096,3757.7,3757.0,3.5565]
[1753497174429,0.00096,3757.7,3757.1,0.9305]
[1753497174635,2.66128888,3757.6,3757.1,0.9305]
[1753497174843,2.66128888,3757.6,3756.5,6.47212235]
[1753497174844,0.00096,3757.7,3757.2,2.626]
[1753497175156,0.4276,3759.1,3757.2,2.626]
[1753497175157,0.14920159,3759.2,3758.9,5.66035276]
[1753497175354,0.4667,3760.6,3758.9,9.02615276]
[1753497175355,0.4276,3760.6,3758.9,9.02615276]
[1753497175555,0.4667,3760.3,3758.9,9.95665276]
[1753497175760,1e-08,3759.0,3758.9,10.15272896]
[1753497175960,1e-08,3759.0,3758.9,10.70272896]
[1753497176182,1e-08,3759.0,3758.9,25.57691196]
[1753497176338,1.2437,3761.3,3760.3,2.65933898]
[1753497176665,0.3521461,3761.7,3758.9,15.61491096]
[1753497176666,0.3521461,3761.7,3760.1,0.0124693]
[1753497176838,0.3521461,3761.7,3759.5,3.48892179]
[1753497176839,0.3521461,3761.7,3760.2,2.625]
[1753497177039,0.3521461,3761.7,3759.6,3.0]
[1753497177040,0.4667,3761.6,3760.3,2.624]
[1753497177240,0.18242594,3762.3,3760.1,3.0]
[1753497177241,0.14920159,3762.3,3761.7,0.55]
[1753497177458,0.1463125,3763.4,3761.9,3.0]
[1753497177459,0.29551409,3763.4,3761.9,3.0]
[1753497177658,0.17952714,3763.4,3761.9,3.0]
[1753497177857,0.4667,3762.8,3761.6,0.829]
[1753497178077,0.8161,3763.0,3760.6,0.829]
[1753497178078,2.65781229,3762.5,3760.6,0.829]
[1753497178248,0.8943,3762.4,3760.6,0.20266654]
[1753497178568,2.64753078,3762.7,3760.6,0.20266654]
[1753497178569,0.14920159,3762.6,3760.9,0.55]
[1753497178748,0.02353078,3762.7,3761.4,0.829]
[1753497178946,0.02353078,3762.7,3761.6,3.0]
[1753497179369,0.02353078,3762.7,3761.7,0.94294461]
[1753497179580,0.02353078,3762.7,3761.7,0.9305]
[1753497179886,0.02353078,3762.7,3761.9,3.0]
[1753497180089,2.65788576,3762.4,3761.7,3.0]
[1753497180302,0.4667,3762.6,3761.4,0.829]
[1753497180453,0.02353078,3762.7,3762.3,0.1328]
[1753497180651,0.02353078,3762.7,3761.7,0.4832]
[1753497180652,0.02353078,3762.7,3762.6,0.1328]
[1753497180852,0.02353078,3762.7,3762.0,2.627]
[1753497180853,0.02353078,3762.7,3761.1,0.4832]
[1753497181071,2.65886941,3761.0,3760.6,0.20226728]
[1753497181357,2.65892003,3761.0,3760.6,0.01246764]
[1753497181552,0.4667,3761.0,3760.0,0.9305]
[1753497181796,0.4667,3761.0,3760.0,0.19653784]
[1753497182088,0.4667,3761.0,3759.6,0.4832]
[1753497182293,0.4667,3762.5,3760.2,6.23768815]
[1753497182597,0.02353078,3762.7,3760.2,6.23768815]
[1753497182598,0.02353078,3762.7,3761.4,3.0]
[1753497182754,0.02353078,3762.7,3761.8,1.3225]
[1753497182953,0.02353078,3762.7,3761.9,0.55]
[1753497183181,0.02353078,3762.7,3761.9,0.9305]
[1753497183583,0.02353078,3762.7,3762.6,3.0]
[1753497183787,0.02353078,3762.7,3762.6,5.67017113]
[1753497183988,0.02353078,3762.7,3762.6,6.58823667]
[1753497184569,0.012,3763.4,3763.3,2.65724231]
[1753497184772,0.012,3763.4,3763.3,3.0]
[1753497185087,0.012,3763.4,3763.3,5.65724231]
[1753497185289,0.012,3763.4,3763.3,6.58774231]
[1753497185888,0.012,3763.4,3763.3,5.65724231]
[1753497186092,0.012,3763.4,3763.3,6.58774231]
[1753497186258,8.89345644,3765.4,3763.3,6.58774231]
[1753497186259,0.4667,3765.1,3764.1,3.0]
[1753497186459,0.4667,3765.1,3764.2,0.0124012]
[1753497186659,0.4276,3765.0,3763.4,3.7533]
[1753497186894,0.4276,3765.0,3761.7,2.65837138]
[1753497186895,6.23768815,3764.2,3762.8,1.2365]
[1753497187096,6.23768815,3764.2,3762.8,0.7533]
[1753497187097,2.65674814,3764.0,3762.8,0.7533]
[1753497187270,0.7815,3764.8,3762.8,0.7533]
[1753497187271,1.2482,3764.8,3762.9,0.9305]
[1753497187469,1.2482,3764.8,3763.0,0.9305]
[1753497187783,1.2482,3764.8,3762.8,0.7533]
[1753497187784,2.65639527,3764.5,3762.8,0.7533]
[1753497187982,0.4667,3764.4,3762.9,0.94291912]
[1753497188288,0.7815,3764.8,3764.2,2.65656092]
[1753497188488,0.7815,3764.8,3764.0,3.0]
[1753497188712,0.7815,3764.8,3764.2,2.65653899]
[1753497188896,0.7815,3764.8,3764.1,2.65667592]
[1753497189206,0.4667,3765.2,3764.6,2.65625911]
[1753497189527,0.4667,3765.2,3762.9,0.4832]
[1753497189528,2.65611304,3764.9,3762.9,0.4832]
[1753497189808,0.8943,3764.8,3762.9,0.4832]
[1753497189963,0.8007,3764.5,3762.2,1.2302]
[1753497190163,3.58400254,3764.4,3762.2,1.2302]
[1753497190376,0.8943,3764.3,3762.3,0.9305]
[1753497190595,0.8943,3764.2,3762.4,0.9305]
[1753497190768,2.65674814,3764.0,3762.6,2.65772085]
[1753497190968,0.1328,3763.9,3763.4,0.1328]
[1753497191168,0.8007,3764.5,3762.2,3.4629]
[1753497191476,2.65753244,3762.9,3762.2,0.7829]
[1753497191663,6.23768815,3763.7,3762.8,0.1328]
[1753497191664,2.65744679,3763.1,3762.8,0.1328]
[1753497191870,0.4667,3763.6,3762.8,0.1328]
[1753497192089,0.4667,3763.6,3763.0,0.1328]
[1753497192289,0.8007,3763.8,3763.0,5.65743645]
[1753497192571,0.8007,3763.8,3763.3,0.1328]
[1753497192769,0.1328,3763.9,3763.3,0.1328]
[1753497193105,1.2674,3764.4,3763.7,0.1328]
[1753497193272,1.4002,3764.4,3763.7,0.1328]
[1753497193474,1.4002,3764.4,3763.9,0.1328]
[1753497193673,0.4667,3764.3,3763.9,0.1328]
[1753497193975,0.8007,3764.9,3764.0,0.01240903]
[1753497194166,0.8007,3764.9,3764.3,2.65646782]
[1753497194604,0.8007,3764.9,3764.4,2.65644889]
[1753497194763,0.4667,3765.2,3764.5,2.65634487]
[1753497194982,0.4667,3765.2,3764.6,2.6563052]
[1753497195314,0.7705,3765.6,3764.3,2.65650006]
[1753497195315,1.2372,3765.6,3764.4,0.01239623]
[1753497195528,1.2372,3765.6,3764.3,0.4832]
[1753497195679,1.2372,3765.6,3764.7,2.65618748]
[1753497195884,0.03319612,3765.5,3764.7,2.6562509]
[1753497196087,6.23768815,3765.6,3763.9,2.65681872]
[1753497196296,2.6559772,3765.1,3764.3,2.65649986]
[1753497196518,2.65604305,3765.0,3763.8,0.4832]
[1753497196726,2.65604305,3765.0,3760.0,7.38927623]
[1753497196727,2.69281211,3764.9,3763.1,0.4832]
[1753497196904,2.677,3765.0,3763.2,0.4473]
[1753497197105,6.23768815,3764.9,3763.3,0.4832]
[1753497197295,2.65647435,3764.4,3763.5,2.65705667]
[1753497197630,6.23768815,3764.9,3762.7,0.4473]
[1753497197631,2.65681622,3764.0,3762.7,0.4473]
[1753497197792,0.02081211,3763.9,3762.7,0.9305]
[1753497197992,0.3473,3764.4,3762.7,0.9305]
[1753497198193,0.3473,3764.4,3762.8,2.6575954]
[1753497198401,2.65625574,3764.7,3763.7,2.65688972]
[1753497198625,2.65618359,3764.8,3763.6,2.65702159]
[1753497198804,2.65625415,3764.7,3763.7,2.6569569]
[1753497198999,1.13861211,3764.6,3763.6,2.65702104]
[1753497199200,3.77417766,3764.6,3763.7,2.65695647]
[1753497199406,3.77417766,3764.6,3763.3,0.9305]
[1753497199726,2.65645421,3764.5,3763.6,2.65696969]
[1753497199902,2.65645421,3764.5,3763.7,2.65695856]
[1753497200122,0.02081211,3764.4,3763.7,2.65695856]
[1753497200303,2.65645421,3764.5,3763.7,2.65695856]
[1753497200642,2.65673374,3764.1,3763.3,2.65722113]
[1753497200805,2.65673374,3764.1,3763.3,2.65717176]
[1753497201139,0.3473,3764.4,3763.4,2.65712412]
[1753497201340,2.6565364,3764.3,3763.4,2.65712412]
[1753497201540,2.65663168,3764.2,3763.4,2.65712412]
[1753497201741,2.6565364,3764.3,3763.5,2.65709264]
[1753497202447,2.65661747,3764.2,3763.5,2.65709264]
[1753497202944,2.65661348,3764.2,3763.4,2.65716325]
[1753497203446,2.65662465,3764.2,3763.4,2.65716844]
[1753497203957,0.7705,3764.6,3763.1,0.4902]
[1753497204106,0.7705,3764.6,3763.5,0.4902]
[1753497204303,0.7705,3764.6,3763.6,0.0265703]
[1753497204511,0.7705,3764.6,3764.0,0.1328]
[1753497204512,0.1328,3764.5,3764.0,0.1328]
[1753497204710,0.1328,3764.5,3764.4,2.65646583]
[1753497204924,0.1328,3764.5,3764.2,2.65660698]
[1753497204925,0.1328,3764.7,3764.2,2.78940698]
[1753497205109,6.23768815,3766.1,3764.1,0.9576]
[1753497205110,2.666,3765.7,3765.0,2.65600737]
[1753497205309,0.8033,3765.8,3764.5,2.65639527]
[1753497205524,0.02081211,3765.6,3764.7,2.65624477]
[1753497205738,2.65571486,3765.5,3764.7,2.65624477]
[1753497205945,3.00285347,3765.7,3764.7,2.65624477]
[1753497206149,2.6557584,3765.5,3764.4,0.4902]
[1753497206439,5.32063991,3765.6,3764.5,1.2636]
[1753497206647,2.665,3765.6,3764.5,1.2636]
[1753497206849,2.65576526,3765.4,3764.5,0.4674]
[1753497207064,2.65568496,3765.6,3764.5,0.4674]
[1753497207207,0.3473,3765.7,3764.5,0.4674]
[1753497207410,2.65581145,3765.4,3764.5,0.4674]
[1753497207613,2.65581145,3765.4,3764.1,0.19885751]
[1753497207614,2.65597785,3765.1,3764.3,2.656502]
[1753497207834,2.65604929,3765.0,3764.3,2.656502]
[1753497208159,7.04098815,3765.8,3764.1,0.19885751]
[1753497208363,2.65554876,3765.7,3764.8,2.65616963]
[1753497208514,1.1506,3765.8,3764.4,0.4674]
[1753497208715,2.65568314,3765.6,3764.8,2.65613261]
[1753497209039,2.65573474,3765.5,3764.6,0.4902]
[1753497209241,2.65563255,3765.6,3764.8,2.65618156]
[1753497209750,2.65577969,3765.4,3764.6,0.4902]
[1753497209944,2.65577969,3765.4,3764.7,2.65623096]
[1753497210146,0.02081211,3765.5,3764.4,0.4674]
[1753497210347,0.8033,3764.8,3763.8,0.4902]
[1753497210511,2.65553614,3765.8,3764.0,0.7962]
[1753497210713,0.8033,3766.0,3764.3,2.6564802]
[1753497211070,0.0353,3767.0,3766.5,0.7962]
[1753497211215,0.0353,3767.0,3766.6,0.9576]
[1753497211411,29.80976922,3768.0,3766.6,0.9576]
[1753497211659,29.80976922,3768.0,3766.5,0.7962]
[1753497211660,29.80976922,3768.0,3767.3,2.65442051]
[1753497211967,29.80976922,3768.0,3766.5,3.45116982]
[1753497211968,0.36811211,3767.9,3766.6,0.4674]
[1753497212256,29.80976922,3768.0,3766.7,0.9576]
[1753497212409,29.80976922,3768.0,3766.8,0.7962]
[1753497212614,29.80976922,3768.0,3766.9,0.9576]
[1753497212914,29.80976922,3768.0,3766.8,3.45096773]
[1753497212915,29.80976922,3768.0,3767.3,2.65435211]
[1753497213114,29.80976922,3768.0,3767.3,2.65441152]
[1753497213350,29.80976922,3768.0,3767.4,2.65434149]
[1753497213648,29.80976922,3768.0,3767.0,0.9576]
[1753497214156,29.80976922,3768.0,3765.1,2.65591646]
[1753497214157,2.65508058,3766.4,3765.8,0.7962]
[1753497214318,2.65539168,3766.0,3764.9,0.4674]
[1753497214656,5.32412572,3766.3,3765.0,0.02656042]
[1753497214826,5.32412572,3766.3,3765.2,2.65584396]
[1753497215019,5.32412572,3766.3,3765.1,0.9576]
[1753497215020,2.65520848,3766.2,3765.8,0.1328]
[1753497215215,2.65520848,3766.2,3765.0,2.69656042]
[1753497215216,0.1328,3765.9,3764.6,0.4674]
[1753497215417,0.02081211,3766.1,3764.1,0.7683]
[1753497215418,0.8109,3765.2,3764.1,0.7683]
[1753497215751,0.8109,3765.2,3763.6,3.42526739]
[1753497215752,2.65640913,3764.5,3763.6,3.42526739]
[1753497215922,0.8109,3765.2,3763.7,0.98416959]
[1753497216240,0.1328,3765.1,3764.6,0.1328]
[1753497216438,2.65610458,3765.0,3764.6,0.1328]
[1753497216627,2.78878453,3765.1,3764.6,0.1328]
[1753497216821,0.1328,3765.1,3764.6,0.1328]
[1753497217352,0.1328,3764.7,3764.0,0.1328]
[1753497217564,0.1328,3764.5,3764.0,0.1328]
[1753497217853,2.65574636,3765.5,3763.6,1.2585]
[1753497217854,29.80976922,3768.0,3764.2,0.7683]
[1753497218013,0.1328,3767.7,3766.2,0.7683]
[1753497218336,2.65456724,3767.1,3766.3,2.65506591]
[1753497218528,0.1328,3767.2,3766.7,0.1328]
[1753497218848,0.1328,3767.0,3766.5,0.1328]
[1753497220235,29.80976922,3768.0,3767.0,2.654606]
[1753497220558,29.80976922,3768.0,3767.3,2.65441323]
[1753497220960,29.80976922,3768.0,3767.4,2.65429482]
[1753497221331,29.80976922,3768.0,3767.2,2.65443907]
[1753497221652,29.80976922,3768.0,3767.3,2.65435058]
[1753497221855,2.65399824,3767.9,3767.0,2.65461993]
[1753497222058,29.80976922,3768.0,3766.9,0.4902]
[1753497222360,29.80976922,3768.0,3767.6,2.65419987]
[1753497222665,29.80976922,3768.0,3766.9,0.9576]
[1753497222666,29.80976922,3768.0,3767.0,2.65463233]
[1753497222833,29.80976922,3768.0,3766.9,0.9576]
[1753497223041,29.80976922,3768.0,3767.4,2.65434633]
[1753497223427,29.80976922,3768.0,3767.5,2.65427986]
[1753497223757,29.80976922,3768.0,3767.5,0.4902]
[1753497223958,29.80976922,3768.0,3767.2,0.4674]
[1753497223959,29.80976922,3768.0,3766.9,0.4902]
[1753497224463,29.80976922,3768.0,3767.0,0.4674]
[1753497224641,29.80976922,3768.0,3767.9,2.65399824]
[1753497225868,29.80976922,3768.0,3767.6,2.65420771]
[1753497226065,29.80976922,3768.0,3767.7,2.65413912]
[1753497226282,29.80976922,3768.0,3767.8,2.65404516]
[1753497226566,29.80976922,3768.0,3767.7,2.65411252]
[1753497226768,29.80976922,3768.0,3767.7,3.61171252]
[1753497226950,29.80976922,3768.0,3767.8,2.65404714]
[1753497227350,29.80976922,3768.0,3767.8,2.6540556]
[1753497227546,29.80976922,3768.0,3767.7,3.61168479]
[1753497227883,29.80976922,3768.0,3767.6,2.65419308]
[1753497228040,29.80976922,3768.0,3767.5,2.65422187]
[1753497228244,29.80976922,3768.0,3767.1,1.7144]
[1753497228471,29.80976922,3768.0,3767.6,2.65420731]
[1753497228669,29.80976922,3768.0,3767.5,2.65426366]
[1753497228972,32.49676922,3768.0,3767.5,2.65421858]
[1753497229141,35.15072565,3768.0,3767.1,0.7568]
[1753497229342,35.15072565,3768.0,3767.0,2.65456256]
[1753497229343,2.688,3767.9,3767.0,2.65456256]
[1753497229661,2.688,3767.9,3767.1,2.65452294]
[1753497229872,2.69,3767.8,3767.1,2.65452294]
[1753497230081,2.69,3767.8,3767.2,2.65448354]
[1753497230255,29.80976922,3768.0,3767.4,0.1328]
[1753497230452,29.80976922,3768.0,3767.7,2.65413912]
[1753497230671,29.80976922,3768.0,3767.3,0.9272]
[1753497230988,29.80976922,3768.0,3767.9,0.1328]
[1753497231763,29.80976922,3768.0,3767.9,2.78679824]
[1753497231978,29.80976922,3768.0,3767.9,0.1328]
[1753497232576,29.80976922,3768.0,3767.9,2.78679824]
[1753497233556,29.80976922,3768.0,3767.9,0.1328]
[1753497233757,29.80976922,3768.0,3767.9,2.78679824]
[1753497235179,29.80976922,3768.0,3767.7,0.1328]
[1753497235679,29.80976922,3768.0,3767.7,2.65412425]
[1753497235867,29.80976922,3768.0,3767.6,2.78698764]
[1753497236186,32.48676922,3768.0,3767.6,2.78698764]
[1753497236389,29.80976922,3768.0,3767.8,2.65401846]
[1753497236589,29.80976922,3768.0,3767.9,2.65399824]
[1753497236891,29.80976922,3768.0,3767.9,3.11729824]
[1753497237974,29.80976922,3768.0,3767.8,2.65405891]
[1753497238484,29.80976922,3768.0,3767.6,2.8058]
[1753497238794,29.80976922,3768.0,3767.8,2.65405188]
[1753497239166,29.80976922,3768.0,3767.9,2.65399824]
[1753497239363,29.80976922,3768.0,3767.5,0.1328]
[1753497239768,29.80976922,3768.0,3767.9,2.65399824]
[1753497240560,29.80976922,3768.0,3767.8,0.1328]
[1753497240766,0.7811,3767.9,3766.6,0.4633]
[1753497241081,0.1328,3767.6,3766.9,0.1328]
[1753497241274,2.667,3767.5,3766.9,0.1328]
[1753497241594,0.1328,3767.4,3766.9,0.1328]
[1753497241901,3.0143,3767.3,3766.9,0.1328]
[1753497242062,3.03511211,3767.3,3766.7,0.1328]
[1753497242268,2.665,3767.2,3766.7,2.78763394]
[1753497242495,2.665,3767.2,3766.7,0.1328]
[1753497242695,2.665,3767.2,3766.7,2.78763344]
[1753497242696,0.7811,3767.1,3766.7,2.78763344]
[1753497242866,0.7811,3767.1,3766.7,0.1328]
[1753497243068,0.7811,3767.1,3766.7,2.65479452]
[1753497243480,0.7811,3767.1,3766.9,2.65469639]
[1753497243981,0.7811,3767.1,3766.6,0.1328]
[1753497244502,0.1328,3767.0,3766.7,2.65484068]
[1753497244865,0.1328,3767.0,3766.5,0.1328]
[1753497245293,2.787483,3767.0,3766.2,2.65516603]
[1753497245493,3.00204303,3766.9,3765.9,2.98737348]
[1753497245690,0.1328,3766.5,3765.9,0.1328]
[1753497245926,0.1328,3766.2,3765.7,0.1328]
[1753497246230,0.1328,3765.9,3765.1,2.65591587]
[1753497246394,0.02081211,3765.8,3764.5,0.4633]
[1753497246588,2.65498959,3766.5,3764.5,0.4633]
[1753497246589,1.12421211,3766.5,3765.1,0.1328]
[1753497246815,1.12421211,3766.5,3766.0,2.78813722]
[1753497246816,0.7561,3766.5,3766.0,2.78813722]
[1753497247126,0.7561,3766.5,3766.2,2.65516055]
[1753497247423,0.7561,3766.5,3766.4,2.65505522]
[1753497247799,0.7561,3766.5,3765.9,2.65538771]
[1753497248012,0.1328,3766.3,3766.0,2.65533722]
[1753497248198,2.664,3766.2,3766.1,2.65526119]
[1753497249124,2.664,3766.2,3766.0,2.65532978]
[1753497249291,0.1328,3766.3,3765.8,2.65547825]
[1753497249496,0.02081211,3767.6,3766.1,0.8137]
[1753497249691,0.1328,3767.0,3766.8,2.65473403]
[1753497249914,2.661,3766.9,3766.8,2.65473403]
[1753497250126,2.661,3766.9,3766.5,1.06]
[1753497250325,2.661,3766.9,3766.5,0.1328]
[1753497250496,2.661,3766.9,3766.6,2.65486045]
[1753497250703,2.661,3766.9,3765.2,0.9272]
[1753497250704,0.8046,3766.7,3765.2,0.9272]
[1753497250922,2.65511193,3766.4,3765.4,2.65570506]
[1753497251232,0.1328,3765.7,3765.2,3.58305312]
[1753497251533,0.8046,3766.1,3765.2,3.58305312]
[1753497251534,2.663,3765.8,3765.3,3.58300917]
[1753497251695,2.663,3765.8,3765.6,2.65559883]
[1753497251895,0.1328,3766.0,3765.6,0.8137]
[1753497252101,0.1328,3766.2,3765.8,2.6554774]
[1753497252436,0.1328,3766.2,3766.1,2.65526672]
[1753497252731,0.8046,3767.1,3766.1,0.1328]
[1753497252732,0.1328,3766.6,3766.1,0.1328]
[1753497253043,0.1328,3766.6,3766.4,2.6549932]
[1753497253330,0.1328,3767.0,3766.5,3.71498473]
[1753497253540,2.673,3767.1,3766.6,2.65491424]
[1753497253697,2.673,3767.4,3767.0,0.1328]
[1753497253903,0.8046,3767.5,3767.0,0.1328]
[1753497254210,2.674,3767.3,3767.1,2.65456091]
[1753497254534,2.674,3767.3,3766.9,2.78749551]
[1753497254713,2.674,3767.3,3767.0,2.65462964]
[1753497255031,0.1328,3767.4,3767.0,2.65462964]
[1753497255243,2.671,3767.3,3767.0,2.65462964]
[1753497255536,2.671,3767.3,3766.8,2.65476766]
[1753497255537,0.02081211,3767.2,3766.8,2.65476735]
[1753497255731,2.67,3767.3,3767.0,2.65461217]
[1753497255926,2.67,3767.3,3767.0,3.11791217]
[1753497256159,0.14,3767.6,3767.3,2.65442093]
[1753497256445,0.14,3767.6,3767.1,1.71084561]
[1753497256446,0.14,3767.9,3767.7,2.65413482]
[1753497256754,0.14,3767.9,3767.8,0.4633]
[1753497256960,0.14,3767.9,3767.1,0.7571]
[1753497257251,0.14,3767.9,3767.4,0.4633]
[1753497257422,0.14,3767.9,3767.6,2.654209]
[1753497257612,0.14,3767.9,3767.5,2.65427546]
[1753497258009,0.14,3767.9,3767.3,0.4639]
[1753497258215,0.14,3767.9,3767.3,3.1183013]
[1753497258448,0.14,3767.9,3767.1,3.4633]
[1753497258652,0.02081211,3767.8,3767.1,0.4633]
[1753497258813,2.79400036,3767.9,3767.1,3.11779862]
[1753497259149,2.65408282,3767.8,3767.1,3.11779862]
[1753497259322,2.79400949,3767.9,3767.1,3.11779862]
[1753497259527,2.79400949,3767.9,3767.2,2.65449062]
[1753497259728,2.79400949,3767.9,3767.1,0.4633]
[1753497259729,0.14,3767.9,3767.1,3.58171566]
[1753497259927,0.14,3767.9,3767.4,2.65434805]
[1753497260120,2.665,3767.8,3767.4,2.65434805]
[1753497260326,2.665,3767.8,3767.2,2.65442153]
[1753497260538,0.02081211,3767.7,3767.2,2.65442153]